Cogmind - Beta 13 @@@ ROGUE MODE // 2024.04.01 @ 16:24:39 Player: lazy_engineer Result: Self-destructed Performance ------------- Evolutions (1) 500 Regions Visited (3) 600 Robots Destroyed (33) 165 Value Destroyed (681) 681 Prototype IDs (0) 0 Alien Tech Used (0) 0 Bonus (0) 0 TOTAL SCORE: 1946 Bonus ------- None Cogmind --------- Core Integrity 6/400 Matter 41/300 Energy 100/100 System Corruption 4% Temperature Cool (6) Movement Core (750) Ox14 Location -9/Materials Parts ------- > --- POWER (1) -------- (None) > --- PROPULSION (2) --- (None) > --- UTILITY (4) ------ High-capacity Storage Unit Weight Redist. System Structural Scanner Terrain Scan Processor > --- WEAPON (2) ------- Hammer > --- INVENTORY (20) --- Sensor Array Seismic Detector Grenade Launcher Mining Laser Welding Torch Peak State ------------ > --- POWER ------------ Light Nuclear Core > --- PROPULSION ------- Compact Wheel > --- UTILITY ---------- High-capacity Storage Unit Structural Scanner Terrain Scanner Terrain Scan Processor > --- WEAPON ----------- Light Assault Rifle Grenade Launcher > --- INVENTORY -------- Light Ion Engine Flight Unit Seismic Detector Grenade Launcher Grenade Launcher Mining Laser [Rating: 11] Favorites ----------- Power Ion Engine Engine Ion Engine Power Core Light Nuclear Core Propulsion Aluminum Leg Treads Light Treads Leg Aluminum Leg Wheel Compact Wheel Flight Unit Flight Unit Utility Seismic Detector Device Seismic Detector Storage Small Storage Unit Processor Terrain Scan Processor Weapon Grenade Launcher Energy Gun Small Laser Ballistic Gun Assault Rifle Ballistic Cannon Light Cannon Launcher Grenade Launcher Special Weapon Mining Laser Impact Weapon Hammer Build | -11 -10 -10 -9 ------- Run | Yrd Mat Min Mat Slots Evolved 2 | . . . 2 Power . | . . . . Propulsion . | . . . . Utility 2 | . . . 2 Weapon . | . . . . Parts Attached 39 | 6 9 8 16 Power 5 | 1 1 1 2 Engine 4 | 1 1 1 1 Core 1 | . . . 1 Reactor . | . . . . Propulsion 11 | 2 2 2 5 Treads 3 | 2 . . 1 Leg 2 | . 2 . . Wheel 3 | . . 2 1 Hover . | . . . . Flight 3 | . . . 3 Utility 9 | 1 2 2 4 Device 5 | . 2 . 3 Storage 3 | 1 . 2 . Processor 1 | . . . 1 Hackware . | . . . . Protection . | . . . . Artifact . | . . . . Weapon 14 | 2 4 3 5 Energy Gun 2 | 1 1 . . Energy Cannon . | . . . . Ballistic Gun 3 | 1 . . 2 Ballistic Cannon 1 | . 1 . . Launcher 6 | . 2 2 2 Special Weapon 1 | . . 1 . Impact Weapon 1 | . . . 1 Slashing Weapon . | . . . . Piercing Weapon . | . . . . Special Melee Weapon . | . . . . Unidentified Prototypes . | . . . . Parts Lost 20 | . 5 5 10 Power 4 | . 1 1 2 Propulsion 7 | . 2 1 4 Utility 3 | . 1 1 1 Weapon 6 | . 1 2 3 Highest Loss Streak 6 | . 3 2 6 To Critical Strikes . | . . . . Average Slot Usage (%) 77 | . 77 78 75 Engine 2 | . 6 . 2 Treads 2 | . 7 . 1 Leg 12 | . 17 15 . Wheel 4 | . . 7 4 Flight 1 | . . . 4 Device 13 | . 5 13 21 Storage 13 | . 14 14 11 Processor 2 | . . . 11 Energy Gun 2 | . 9 . . Ballistic Gun 2 | . 5 . 2 Ballistic Cannon 7 | . 2 13 . Launcher 8 | . 7 9 8 Special Weapon 2 | . . 4 . Impact Weapon 1 | . . . 4 Naked Turns . | . . . . Heaviest Build 51 | 13 14 47 51 Greatest Support 40 | 40 40 32 26 Greatest Overweight (x) 14 | 1 4 2 14 Average Overweight (x) . | . . . 3 Largest Inventory Capacity 20 | 8 8 20 20 Average Capacity 13 | 7 8 13 20 Most Carried 11 | 6 8 11 10 Average Carried 7 | 3 5 9 6 Final Capacity 20 | 8 8 20 20 Final Carried 11 | 5 8 11 5 Class Distribution -------------------- 74% | Mutant 20% | Scavenger-Mutant 5% | Scavenger-Skirmisher Dominant Class ---------------- Mutant | -10/Materials Mutant | -10/Mines Mutant | -9/Materials Resources | -11 -10 -10 -9 ----------- Run | Yrd Mat Min Mat Matter Collected 694 | 314 108 224 48 Remotely . | . . . . Salvage Created 948 | 236 382 203 127 Parts 51 | 16 17 12 6 Haulers Intercepted . | . . . . Recyclers Shooed . | . . . . Parts Field Recycled . | . . . . Retrieved Matter . | . . . . Parts Self-Destructed . | . . . . Prevented . | . . . . Kills | -11 -10 -10 -9 ------- Run | Yrd Mat Min Mat Combat Hostiles Destroyed 17 | . 8 2 7 Melee 1 | . . . 1 Guns 7 | . 7 . . Cannons 3 | . 1 2 . AOE 6 | . . . 6 Classes Destroyed 8 | 3 3 . 2 Worker 4 | 2 1 1 . Builder 3 | . 1 2 . Tunneler 5 | 5 . . . Recycler 3 | 1 . 2 . Watcher 1 | . 1 . . Swarmer 3 | . . . 3 Grunt 13 | . 8 2 3 Brawler 1 | . . . 1 Best Kill Streak 5 | 4 4 4 5 Combat Bots Only 5 | . 4 2 5 Max Kills in Single Turn 2 | 1 2 2 2 Gunslinging . | . . . . Exploded 2 | . . . 2 Melee 1 | . . . 1 Uniques/NPCs Destroyed . | . . . . Combat | -11 -10 -10 -9 -------- Run | Yrd Mat Min Mat Hostile Shots Fired 213 | . 84 21 108 Missed 62 | . 24 8 30 Damage Taken 2137 | . 851 275 1011 Core 577 | . 153 30 394 Absorbed by Shields . | . . . . Core Remaining (%) 63 | 100 . 26 . Volleys Fired 101 | 18 58 19 6 Largest 2 | 2 2 2 2 Hottest 65 | 60 65 65 60 Shots Fired 162 | 36 87 28 11 Gun 115 | 36 77 . 2 Cannon 27 | . 8 19 . Launcher 20 | . 2 9 9 Special . | . . . . Kinetic 78 | 18 39 19 2 Thermal 64 | 18 46 . . Explosive 20 | . 2 9 9 Electromagnetic . | . . . . Robot Hit Streak 9 | 7 9 6 3 Robot Miss Streak 5 | 2 3 5 2 Penetration Max . | . . . . Secondary Targets . | . . . . Shots Hit Robots 101 | 23 55 14 9 Core Hits 55 | 9 25 12 9 Critical Kills . | . . . . Critical Parts Destroyed . | . . . . Critical Strikes 1 | . 1 . . Blast 1 | . 1 . . Melee Attacks 5 | . . . 5 Impact 5 | . . . 5 Slashing . | . . . . Piercing . | . . . . Sneak Attacks . | . . . . Combat Hostiles . | . . . . Follow-up Attacks . | . . . . Damage Inflicted 2429 | 266 846 571 746 Guns 892 | 266 618 . 8 Cannons 235 | . 93 142 . Explosions 1227 | . 135 429 663 Melee 75 | . . . 75 Ramming . | . . . . Kinetic 646 | 113 383 142 8 Thermal 481 | 153 328 . . Explosive 1227 | . 135 429 663 Electromagnetic . | . . . . Impact 75 | . . . 75 Slashing . | . . . . Piercing . | . . . . Highest Corruption 4 | . . . 4 Average Corruption 4 | . . . 4 Corruption Purged . | . . . . Corruption Blocked . | . . . . Effects 3 | . . . 3 Matter Fused 1 | . . . 1 Energy Discharges 1 | . . . 1 Misfires 1 | . . . 1 Overload Shots . | . . . . Overflow Damage 116 | . . 45 71 Projectiles . | . . . . Explosions 116 | . . 45 71 Melee . | . . . . Knockbacks 4 | . 1 3 . Impact . | . . . . Kinetic 4 | . 1 3 . Secondary . | . . . . Self-Inflicted Damage 253 | . 22 82 149 Shots 9 | . 1 5 3 Rammed . | . . . . Targets Rammed . | . . . . Kicked . | . . . . Crushed . | . . . . Highest Temperature 225 | . 225 19 8 Average Temperature 97 | . 114 6 5 Received Heat Transfer 1059 | . 480 126 453 Effects 2 | . 2 . . Interference 2 | . 2 . . Siege Activations . | . . . . Robots Corrupted . | . . . . Combat Hostiles . | . . . . Parts Fried . | . . . . Impact Corruptions . | . . . . Robots Melted . | . . . . Combat Hostiles . | . . . . Parts Melted 2 | . 2 . . Heat Transferred 1100 | 350 750 . . Parts Sabotaged . | . . . . Parts Stolen . | . . . . Parts Stripped . | . . . . Power Chain Reactions . | . . . . Alert | -11 -10 -10 -9 ------- Run | Yrd Mat Min Mat Peak Influence 220 | 40 220 176 197 Initial 85 | . 26 85 . Average 85 | 17 114 65 126 Maximum Alert Level 1 | . 1 . . Low Security (%) 99 | 100 97 100 100 Level 1 . | . 2 . . Level 2 . | . . . . Level 3 . | . . . . Level 4 . | . . . . Level 5 . | . . . . High Security . | . . . . Max Security . | . . . . Squads Dispatched 3 | . 2 . 1 Investigation 1 | . 1 . . Extermination . | . . . . Reinforcement 2 | . 1 . 1 Assault . | . . . . Garrison . | . . . . Intercept . | . . . . Searches Triggered . | . . . . Construction Impeded . | . . . . Haulers Reinforced . | . . . . Active Scanning Responses . | . . . . Cargo Convoy Interrupts . | . . . . Stealth | -11 -10 -10 -9 --------- Run | Yrd Mat Min Mat Distress Signals 5 | . 3 1 1 Communications Jammed . | . . . . Distress Signals . | . . . . Times Spotted 28 | . 12 4 12 Peak Tracking Total 4 | . 4 2 4 Tactical Retreats . | . . . . Traps | -11 -10 -10 -9 ------- Run | Yrd Mat Min Mat Traps Triggered 1 | . 1 . . Indirectly . | . . . . Trap Hack Attempts . | . . . . Triggered . | . . . . Disarmed . | . . . . Reprogrammed . | . . . . Reused . | . . . . Traps Extracted . | . . . . Installed . | . . . . Triggered . | . . . . Machines | -11 -10 -10 -9 ---------- Run | Yrd Mat Min Mat Machines Disabled 4 | . 2 . 2 Max in Single Turn 1 | . 1 . 1 Machines Repaired . | . . . . Machines Dismantled . | . . . . Machines Sabotaged . | . . . . Overloaded Fab Kills . | . . . . Hacking | -11 -10 -10 -9 --------- Run | Yrd Mat Min Mat Machines Accessed 1 | . . . 1 Terminals 1 | . . . 1 Fabricators . | . . . . Repair Stations . | . . . . Recycling Units . | . . . . Scanalyzers . | . . . . Garrison Access . | . . . . Total Hacks 2 | . . . 2 Successful 1 | . . . 1 Failed 1 | . . . 1 Catastrophic 1 | . . . 1 Database Lockouts . | . . . . Manual . | . . . . Terminals 2 | . . . 2 Fabricators . | . . . . Repair Stations . | . . . . Recycling Units . | . . . . Scanalyzers . | . . . . Garrison Access . | . . . . Terminal Hacks 1 | . . . 1 Branch Access Points 1 | . . . 1 Fabricator Hacks . | . . . . Repair Station Hacks . | . . . . Recycling Unit Hacks . | . . . . Scanalyzer . | . . . . Garrison Access Hacks . | . . . . Unauthorized Hacks . | . . . . Terminals . | . . . . Fabricators . | . . . . Repair Stations . | . . . . Recycling Units . | . . . . Scanalyzers . | . . . . Garrison Access . | . . . . Data Cores Recovered . | . . . . Used . | . . . . Hacking Detections . | . . . . Full Trace Events . | . . . . Feedback Events . | . . . . Feedback Blocked . | . . . . Robot Schematics Acquired . | . . . . Robots Built . | . . . . Authchips . | . . . . Time . | . . . . Total Robot Build Rating . | . . . . Part Schematics Acquired . | . . . . Parts Built . | . . . . Authchips . | . . . . Time . | . . . . Total Part Build Rating . | . . . . Parts Repaired . | . . . . Time . | . . . . Parts Recycled . | . . . . Recycled Matter . | . . . . Retrieved Matter . | . . . . Retrieved Components . | . . . . Parts Scanalyzed . | . . . . Part Schematics Acquired . | . . . . Parts Damaged . | . . . . Bothacking | -11 -10 -10 -9 ------------ Run | Yrd Mat Min Mat Used RIF Installer . | . . . . Robots Hacked . | . . . . Non-combat . | . . . . Combat . | . . . . Robot Hacks Applied . | . . . . Relay Couplers Released . | . . . . Fabnet Peak Effective % . | . . . . Robots Rewired . | . . . . Allies Hacked . | . . . . Hacks Repelled . | . . . . Allies | -11 -10 -10 -9 -------- Run | Yrd Mat Min Mat Total Allies . | . . . . Largest Group . | . . . . Highest-Rated Group . | . . . . Highest-Rated Ally . | . . . . Total Orders . | . . . . Ally Attacks . | . . . . Total Damage . | . . . . Kills . | . . . . Allies Corrupted . | . . . . Allies Melted . | . . . . Intel | -11 -10 -10 -9 ------- Run | Yrd Mat Min Mat Robot Analysis Total . | . . . . Derelict Logs Recovered 2 | . . 2 . Drone Launches . | . . . . Drone Recoveries . | . . . . Exploration | -11 -10 -10 -9 ------------- Run | Yrd Mat Min Mat Turns Passed 1441 | 146 339 645 311 Spaces Moved 742 | 60 128 451 103 Core 45 | 21 12 . 12 Treads 58 | 39 9 . 10 Legs 315 | . 107 208 . Wheels 315 | . . 243 72 Hover . | . . . . Flight 9 | . . . 9 Fastest Speed 50 | 50 120 100 130 Average Speed 143 | 126 135 128 231 Slowest Speed 840 | 160 250 190 840 Overloaded Moves . | . . . . Propulsion Burnouts . | . . . . Robots Hopped . | . . . . Cave-ins Triggered . | . . . . Exploration Rate (%) 35 | 5 34 91 13 Regions Visited 3 Branch Regions 1 Pre-discovered Areas 2 | . . 2 . Known Exits Taken . | . . . . Unknown Exits Taken 3 | 1 1 1 . Scrap Searched 2 | . . 2 . Spaces Dug . | . . . . Terrain Destroyed 113 | . 11 59 43 Melee . | . . . . Projectile . | . . . . AOE 113 | . 11 59 43 Terrain Rammed . | . . . . Walls Destroyed . | . . . . Machines Disabled . | . . . . Actions | -11 -10 -10 -9 --------- Run | Yrd Mat Min Mat Total 945 | 94 207 489 155 Wait 19 | . . . 19 Move 739 | 59 127 450 103 Hop . | . . . . Pick Up 35 | 11 10 8 6 Fast Attach 1 | . 1 . . Attach 27 | 6 7 2 12 Detach . | . . . . Swap 11 | . 1 6 4 Drop 7 | . 3 4 . Fire 101 | 18 58 19 6 Melee 5 | . . . 5 Ram . | . . . . Kick . | . . . . Crush . | . . . . Escape Stasis . | . . . . Rewire . | . . . . Trap . | . . . . Miscellaneous . | . . . . Route ------- -11/Scrapyard -10/Materials -10/Mines (discovered 2 exits: *Mat x2) -9/Materials (discovered 2 exits: Min x2) History --------- Turn | Location | Event 6 | -11/Scrapyard | Discovered new exit (range 14) 147 | -11/Scrapyard | Entered Materials 262 | -10/Materials | Lost 3 parts (2n1u) 280 | -10/Materials | Core integrity fell below 50% 318 | -10/Materials | Build established: Mutant 454 | -10/Materials | Discovered new exit (range 10) 486 | -10/Materials | Entered Mines 498 | -10/Mines | Discovered new exit (range 9) 548 | -10/Mines | Learned location of Mines (-9) 776 | -10/Mines | Learned location of Storage (-7) 1114 | -10/Mines | Discovered new exit (range 14) 1131 | -10/Mines | Entered Materials 1131 | -9/Materials | Evolved 2 slots: Utility x2 1254 | -9/Materials | Lost 3 parts (1p1u1w) 1271 | -9/Materials | Identified exit to Mines 1369 | -9/Materials | Core integrity fell below 50% 1388 | -9/Materials | Lost 6 parts (1p3n2w) 1427 | -9/Materials | Core integrity fell below 20% 1442 | -9/Materials | Self-destructed Last Messages --------------- G-34 Mercenary destroyed. The unstable cave ceiling collapses. U-05 Engineer lays Concrete. U-05 Engineer builds a Wall. Lgt. Treads destroyed. U-05 Engineer lays Concrete. U-05 Engineer builds a Wall. U-05 Engineer lays Concrete. U-05 Engineer builds a Door. U-05 Engineer lays Concrete. U-05 Engineer builds a Door. U-05 Engineer builds a Wall. U-05 Engineer lays Concrete. K-01 Serf collects debris. U-05 Engineer builds a Wall. U-05 Engineer lays Concrete. U-05 Engineer builds a Wall. U-05 Engineer lays Concrete. Flight Unit destroyed. System corrupted: Matter fused (-6). Map ----- +----------------------------------------------------+ | ## ##??#??#????????????????????????????????? | | ## #########???????????????????????????????? | | ## #########???????????????????????????????? | | ###### # ##???????????????????????????????? | | # # """###??????????????????????????????? | | "" # # """##???????????????????????????????? | | "" + + """##???????????????????????????????? | | "" # # # ???????????????????????????????? | | "" # # # ???????????????????????????????? | | # ######## ???????????????????????????????? | | ###### ######## "??????????????????????????????? | | ###### #####??? ???????????????????????????????? | | #??### ######## #?????????????????????????? | | #?### ########+####?????????????????????????? | | ?#### ????????????????????????? | | #?## ????????????????????????? | | #?## # ??????????????????????? | | #### # ### ######/#######??????????????????????? | | ??# # # ##??????????????????????? | | ???# # """ # ##??????????????????????? | | ?#### # """ # !! ##??????????????????????? | | ???### # """ #! !??????????????????????????? | | ?##### # # ???????????????????????????? | | #?#?## # "" #] #### ##?????????????????? | | ###?## # Y"!########### ##?????????????????? | | #???## # %g @ g ##?????????????????? | | ????## # ]! =########### ##?????????????????? | | ???### #####/# ########## ##?????????????????? | | ???### ########?????????????????????????? | | ??#### ########?????????????????????????? | | ???### # ##?????????????????????????? | | #??### # """ ##?????????????????????????? | | ?#?### # "T" ##?????????????????????????? | | ???### ##?????????????????????????? | | ?#?### """# ?????????????????????????? | | #??### # """# ?????????????????????????? | | ????## """ / """# ?????????????????????????? | | ????## ^^""" # # ?????????????????????????? | | ????## """ # """# ?????????????????????????? | | ????## # """# ?????????????????????????? | | ????"" # """# ?????????????????????????? | | ????"T """ # # ?????????????????????????? | | ???#"" """ ########?????????????????????????? | | ???### """ ?????????????????????????? | | ???### ???????????????????>??????????>?? | | ????## ? ??????????????????????????????? | | ???? # ? ###T######??????????????????????????????? | | ???????? ##########??????????????????????????????? | | ??????????####???????????????????????????????????? | | ?????????????????????????????????????????????????? | +----------------------------------------------------+ Best States ------------- Heat Dissipation 28 Energy Generation 14 Energy Capacity 250 Matter Stores 300 Matter Capacity 300 Sight Range 16 Terrain Scan Range 16 Terrain Scan Density 85 Additional Mass Support 6 Evasion (%) 55 Recoil Reduction 2 Item Schematics ----------------- None Robot Schematics ------------------ None Fabricated ------------ Nothing Alien Tech Used ----------------- None Achievements -------------- Maybe Next Time I'll Detach My Launcher Challenges ------------ None Game ------ Seed ProjectionSignalSubcomponent Manual? 0 Play Time 00:17:16 Cumulative 7.4 hours Start 2024.04.01 @ 16:05:42 End 2024.04.01 @ 16:24:39 Sessions 1 Manual Loads 0 Difficulty Rogue Special Mode None Game No. 13 Rogue 13 Adventurer 0 Explorer 0 Win Type - Total 0 Types 0/0/0/0/0/0/0/0/0 Lore% 12 Gallery% 12 Achievement% 16 Wizard Run 0 Options --------- Layout 1 ASCII 0 Keyboard 0 Movement Mouse Keybinds 0 Fullscreen 1 Font 32/SmallcapsGlow Map View 50x35 Zoom Use 0% Tactical HUD 0 Map Filters NONE Filters NONE Steam 1 RUN: 7fe584fc-1218-4c51-bd49-b133528c369d